fUSD/lending_fUSD_20240606
["ID","MTS","AMOUNT","RATE_DAILY","PERIOD"]
[328699121,1717716689603,-1716.01,0.00029999,4]
[328699122,1717716689614,-1716.01,0.00029999,4]
[328699123,1717716689624,-1716.01,0.00029999,4]
[328699124,1717716689633,-1716.01,0.00029999,4]
[328699125,1717716689643,-1716.16395759,0.00029999,4]
[328699126,1717716689652,-524.61,0.00029999,4]
[328699127,1717716689662,-524.61,0.00029999,4]
[328699128,1717716689672,-524.61,0.00029999,4]
[328699129,1717716689683,-524.61,0.00029999,4]
[328699130,1717716689692,-524.61,0.00029999,4]
[328699131,1717716689702,-524.61,0.00029999,4]
[328699132,1717716689711,-524.61,0.00029999,4]
[328699133,1717716689721,-524.61,0.00029999,4]
[328699134,1717716689730,-524.61,0.00029999,4]
[328699135,1717716689739,-524.65836546,0.00029999,4]
[328699136,1717716689749,-1265.08,0.00029999,4]
[328699137,1717716689758,-1265.08,0.00029999,4]
[328699138,1717716689768,-1265.08,0.00029999,4]
[328699139,1717716689777,-1265.08,0.00029999,4]
[328699140,1717716689787,-1265.08,0.00029999,4]
[328699141,1717716689796,-1265.08,0.00029999,4]
[328699142,1717716689805,-1265.16,0.00029999,4]
[328699143,1717716689815,-895.41,0.00029999,4]
[328699144,1717716689824,-895.41,0.00029999,4]
[328699145,1717716689833,-895.41,0.00029999,4]
[328699146,1717716689842,-895.41,0.00029999,4]
[328699147,1717716689851,-895.41,0.00029999,4]
[328699148,1717716689861,-895.41,0.00029999,4]
[328699149,1717716689870,-895.41,0.00029999,4]
[328699150,1717716689880,-895.41,0.00029999,4]
[328699151,1717716689889,-895.41,0.00029999,4]
[328699152,1717716689899,-895.64150139,0.00029999,4]
[328699153,1717716689908,-940.43,0.00029999,4]
[328699154,1717716689917,-940.43,0.00029999,4]
[328699155,1717716689928,-940.43,0.00029999,4]
[328699156,1717716689938,-705.83,0.00029999,4]
[328699157,1717716689948,-940.43,0.00029999,4]
[328699158,1717716689959,-940.43,0.00029999,4]
[328699159,1717716689968,-705.83,0.00029999,4]
[328699160,1717716689980,-940.43,0.00029999,4]
[328699161,1717716689991,-705.83,0.00029999,4]
[328699162,1717716690001,-940.61,0.00029999,4]
[328699163,1717716690011,-705.83,0.00029999,4]
[328699164,1717716690021,-705.83,0.00029999,4]
[328699165,1717716690034,-705.83,0.00029999,4]
[328699166,1717716690043,-705.88212133,0.00029999,4]
[328699167,1717716690053,-934.22,0.00029999,4]
[328699168,1717716690064,-934.22,0.00029999,4]
[328699169,1717716690075,-934.22,0.00029999,4]
[328699170,1717716690084,-934.22,0.00029999,4]
[328699171,1717716690094,-934.22,0.00029999,4]
[328699172,1717716690103,-934.22,0.00029999,4]
[328699173,1717716690115,-500.0,0.00029999,4]
[328699174,1717716690126,-934.22,0.00029999,4]
[328699175,1717716690137,-500.0,0.00029999,4]
[328699176,1717716690147,-934.22,0.00029999,4]
[328699177,1717716690157,-500.0,0.00029999,4]
[328699178,1717716690167,-934.22,0.00029999,4]
[328699179,1717716690176,-500.0,0.00029999,4]
[328699180,1717716690185,-934.42,0.00029999,4]
[328699181,1717716690194,-546.38466913,0.00029999,4]
[328699182,1717716690204,-2380.4,0.00029999,4]
[328699183,1717716690213,-2380.4,0.00029999,4]
[328699184,1717716690222,-2380.4,0.00029999,4]
[328699185,1717716690232,-2380.4,0.00029999,4]
[328699186,1717716690241,-1668.07,0.00029999,4]
[328699187,1717716690250,-2380.4,0.00029999,4]
[328699188,1717716690259,-1668.07,0.00029999,4]
[328699189,1717716690268,-2380.4,0.00029999,4]
[328699190,1717716690278,-2380.40719391,0.00029999,4]
[328699191,1717716690287,-1668.07,0.00029999,4]
[328699192,1717716690297,-1668.07,0.00029999,4]
[328699193,1717716690307,-1668.07,0.00029999,4]
[328699194,1717716690316,-1668.07,0.00029999,4]
[328699195,1717716690326,-1668.12709999,0.00029999,4]
[328699196,1717716690336,-782.73,0.00029999,4]
[328699197,1717716690346,-782.73,0.00029999,4]
[328699198,1717716690356,-782.73,0.00029999,4]
[328699199,1717716690366,-782.73,0.00029999,4]
[328699200,1717716690375,-782.73,0.00029999,4]
[328699201,1717716690385,-782.73,0.00029999,4]
[328699202,1717716690394,-782.73,0.00029999,4]
[328699203,1717716690403,-782.73,0.00029999,4]
[328699204,1717716690412,-782.73,0.00029999,4]
[328699205,1717716690422,-782.84208247,0.00029999,4]
[328699206,1717716690432,-546.45,0.00029999,4]
[328699207,1717716690441,-546.45,0.00029999,4]
[328699208,1717716690450,-546.45,0.00029999,4]
[328699209,1717716690459,-546.45,0.00029999,4]
[328699210,1717716690468,-546.45,0.00029999,4]
[328699211,1717716690477,-546.45,0.00029999,4]
[328699212,1717716690486,-546.49,0.00029999,4]
[328699213,1717716690495,-973.4,0.00029999,4]
[328699214,1717716690505,-973.4,0.00029999,4]
[328699215,1717716690515,-973.4,0.00029999,4]
[328699216,1717716690526,-973.4,0.00029999,4]
[328699217,1717716690536,-973.4,0.00029999,4]
[328699218,1717716690546,-973.4,0.00029999,4]
[328699219,1717716690555,-973.4,0.00029999,4]
[328699220,1717716690565,-973.4,0.00029999,4]
[328699221,1717716690574,-973.4,0.00029999,4]
[328699222,1717716690584,-973.40751229,0.00029999,4]
[328699223,1717716690593,-500.0,0.00029999,4]
[328699224,1717716690602,-245.80961308,0.00029999,4]
[328699225,1717716690612,-500.0,0.00029999,4]
[328699226,1717716690620,-500.0,0.00029999,4]
[328699227,1717716690630,-500.0,0.00029999,4]
[328699228,1717716690639,-500.0,0.00029999,4]
[328699229,1717716690649,-157.9574019,0.00029999,4]
[328699230,1717716690660,-1412.68,0.00029999,4]
[328699231,1717716690669,-1412.68,0.00029999,4]
[328699232,1717716690678,-1412.68,0.00029999,4]
[328699233,1717716690688,-1412.68,0.00029999,4]
[328699234,1717716690698,-1412.68,0.00029999,4]
[328699235,1717716690708,-1412.68,0.00029999,4]
[328699236,1717716690718,-1412.7777748,0.00029999,4]
[328699237,1717716690728,-1411.7,0.00029999,4]
[328699238,1717716690737,-1411.7,0.00029999,4]
[328699239,1717716690747,-1411.7,0.00029999,4]
[328699240,1717716690756,-1411.7,0.00029999,4]
[328699241,1717716690766,-1411.7,0.00029999,4]
[328699242,1717716690777,-1411.7,0.00029999,4]
[328699243,1717716690786,-1411.92009324,0.00029999,4]
[328699244,1717716690796,-7064.95,0.00029999,4]
[328699245,1717716690805,-7064.95,0.00029999,4]
[328699246,1717716690815,-7064.95,0.00029999,4]
[328699247,1717716690825,-7064.95,0.00029999,4]
[328699248,1717716690834,-7064.95,0.00029999,4]
[328699249,1717716690844,-7064.95,0.00029999,4]
[328699250,1717716690854,-7065.16274376,0.00029999,4]
[328699251,1717716690863,-500.0,0.00029999,4]
[328699252,1717716690874,-500.0,0.00029999,4]
[328699253,1717716690885,-500.0,0.00029999,4]
[328699254,1717716690895,-500.0,0.00029999,4]
[328699255,1717716690904,-579.73988078,0.00029999,4]
[328699256,1717716690913,-500.0,0.00029999,4]
[328699257,1717716690922,-500.0,0.00029999,4]
[328699258,1717716690932,-378.70947111,0.00029999,4]
[328699259,1717716690942,-500.0,0.00029999,4]
[328699260,1717716690951,-500.0,0.00029999,4]
[328699261,1717716690962,-500.0,0.00029999,4]
[328699262,1717716690973,-228.96762818,0.00029999,4]
[328699263,1717716690982,-683.51,0.00029999,4]
[328699264,1717716690991,-683.51,0.00029999,4]
[328699265,1717716691000,-683.51,0.00029999,4]
[328699266,1717716691010,-683.51,0.00029999,4]
[328699267,1717716691019,-683.51,0.00029999,4]
[328699268,1717716691031,-683.51,0.00029999,4]
[328699269,1717716691039,-683.51,0.00029999,4]
[328699270,1717716691048,-683.51,0.00029999,4]
[328699271,1717716691057,-683.51,0.00029999,4]
[328699272,1717716691066,-683.74679029,0.00029999,4]
[328699273,1717716691075,-500.0,0.00029999,4]
[328699274,1717716691084,-500.0,0.00029999,4]
[328699275,1717716691093,-500.0,0.00029999,4]
[328699276,1717716691104,-500.0,0.00029999,4]
[328699277,1717716691112,-500.0,0.00029999,4]
[328699278,1717716691121,-500.0,0.00029999,4]
[328699279,1717716691130,-343.1,0.00029999,4]
[328699280,1717716691139,-1035.28,0.00029999,4]
[328699281,1717716691148,-500.0,0.00029999,4]
[328699282,1717716691157,-1035.28,0.00029999,4]
[328699283,1717716691166,-1035.28,0.00029999,4]
[328699284,1717716691175,-1035.28,0.00029999,4]
[328699285,1717716691184,-500.0,0.00029999,4]
[328699286,1717716691194,-1035.28,0.00029999,4]
[328699287,1717716691203,-500.0,0.00029999,4]
[328699288,1717716691212,-1035.28,0.00029999,4]
[328699289,1717716691221,-500.0,0.00029999,4]
[328699290,1717716691230,-1035.48610692,0.00029999,4]
[328699291,1717716691239,-500.0,0.00029999,4]
[328699292,1717716691248,-500.0,0.00029999,4]
[328699293,1717716691259,-500.0,0.00029999,4]
[328699294,1717716691268,-500.0,0.00029999,4]
[328699295,1717716691278,-192.9115654,0.00029999,4]
[328699296,1717716691287,-500.0,0.00029999,4]
[328699297,1717716691296,-500.0,0.00029999,4]
[328699298,1717716691305,-500.0,0.00029999,4]
[328699299,1717716691315,-500.0,0.00029999,4]
[328699300,1717716691324,-500.0,0.00029999,4]
[328699301,1717716691333,-835.37,0.00029999,4]
[328699302,1717716691342,-500.0,0.00029999,4]
[328699303,1717716691351,-835.37,0.00029999,4]
[328699304,1717716691360,-372.9458833,0.00029999,4]
[328699305,1717716691369,-835.37,0.00029999,4]
[328699306,1717716691378,-835.37,0.00029999,4]
[328699307,1717716691387,-835.37,0.00029999,4]
[328699308,1717716691396,-835.37,0.00029999,4]
[328699309,1717716691405,-835.37,0.00029999,4]
[328699310,1717716691414,-835.37,0.00029999,4]
[328699311,1717716691424,-835.37,0.00029999,4]
[328699312,1717716691434,-835.3810992,0.00029999,4]
[328699313,1717716691443,-781.82,0.00029999,4]
[328699314,1717716691453,-2402.46,0.00029999,4]
[328699315,1717716691462,-781.82,0.00029999,4]
[328699316,1717716691471,-2402.46,0.00029999,4]
[328699317,1717716691481,-781.82,0.00029999,4]
[328699318,1717716691490,-781.82,0.00029999,4]
[328699319,1717716691499,-2402.46,0.00029999,4]
[328699320,1717716691633,-781.82,0.00029999,4]
[328699321,1717716691643,-2402.46,0.00029999,4]
[328699322,1717716691652,-781.82,0.00029999,4]
[328699323,1717716691662,-2402.46,0.00029999,4]
[328699324,1717716691671,-781.86202316,0.00029999,4]
[328699325,1717716691681,-2402.46,0.00029999,4]
[328699326,1717716691690,-2402.6131047,0.00029999,4]
[328699327,1717716691700,-150.0,0.00029999,7]
[328699328,1717716691710,-1662.74,0.00029999,4]
[328699329,1717716691720,-1662.74,0.00029999,4]
[328699330,1717716691730,-500.0,0.00029999,4]
[328699331,1717716691739,-1662.74,0.00029999,4]
[328699332,1717716691749,-500.0,0.00029999,4]
[328699333,1717716691759,-1662.74,0.00029999,4]
[328699334,1717716691769,-500.0,0.00029999,4]
[328699335,1717716691778,-1662.74,0.00029999,4]
[328699336,1717716691788,-500.0,0.00029999,4]
[328699337,1717716691797,-1662.74,0.00029999,4]
[328699338,1717716691806,-1662.9599324,0.00029999,4]
[328699339,1717716691816,-500.0,0.00029999,4]
[328699340,1717716691826,-500.0,0.00029999,4]
[328699341,1717716691836,-500.0,0.00029999,4]
[328699342,1717716691845,-500.0,0.00029999,4]
[328699343,1717716691855,-500.0,0.00029999,4]
[328699344,1717716691865,-474.56481281,0.00029999,4]
[328699345,1717716691874,-1109.14,0.00029999,4]
[328699346,1717716691884,-1109.14,0.00029999,4]
[328699347,1717716691894,-1109.14,0.00029999,4]
[328699348,1717716691903,-1109.14,0.00029999,4]
[328699349,1717716691913,-1109.14,0.00029999,4]
[328699350,1717716691922,-1109.14,0.00029999,4]
[328699351,1717716691931,-1109.19,0.00029999,4]
[328699352,1717716691940,-992.33,0.00029999,4]
[328699353,1717716691949,-992.33,0.00029999,4]
[328699354,1717716691959,-992.33,0.00029999,4]
[328699355,1717716691969,-992.33,0.00029999,4]
[328699356,1717716691979,-992.33,0.00029999,4]
[328699357,1717716691988,-992.33,0.00029999,4]
[328699358,1717716691998,-992.38731213,0.00029999,4]
[328699359,1717716692009,-288.60578157,0.0003,25]
[328699360,1717716692018,-291.38628841,0.0003,30]
[328699361,1717716692030,-426.10443986,0.0003,5]
[328699362,1717716692039,-1060344.45558352,0.0003,2]
[328699363,1717716692556,-2229.8616526,0.0003,2]
[328699364,1717716692568,-2206.1555444,0.0003,2]
[328699365,1717716692590,-573.37954002,0.00029863,4]
[328699366,1717716692601,-703.12045998,0.00029863,4]
[328699367,1717716692611,-248.02937267,0.00029863,4]
[328699368,1717716692620,-5413.24703886,0.0003,2]
[328699369,1717716692648,-319.8654,0.00029863,4]
[328699370,1717716692672,-151.0,0.00024798,7]
[328699371,1717716692683,-972.8746,0.00029863,4]
[328699372,1717716692692,-114.12085133,0.00029863,4]
[328699373,1717716692704,-1162.37914867,0.00029863,4]
[328699374,1717716692714,-196.13,0.00029863,4]
[328699375,1717716692723,-432.94797761,0.00029863,4]
[328699376,1717716692735,-859.79202239,0.00029863,4]
[328699377,1717716692744,-1545.10742761,0.0003,2]
[328699378,1717716692756,-1605.35180376,0.0003,2]
[328699379,1717716692768,-798.0142844,0.0003,2]
[328699380,1717716692789,-151.0,0.00025,7]
[328699381,1717716692798,-159.35194765,0.0003,2]
[328699382,1717716692810,-29373.16080844,0.0003,2]
[328699383,1717716692820,-451.5,0.0003,2]
[328699384,1717716692831,-2110.44129949,0.0003,2]
[328699385,1717716692862,-151.0,0.00026917,7]
[328699386,1717716692871,-1292.74,0.00029863,4]
[328699387,1717716692881,-1276.5,0.00029996,4]
[328699388,1717716692892,-2837.34111018,0.0003,2]
[328699389,1717716692903,-316.6913999,0.0003,2]
[328699390,1717716693117,-333.87761899,0.00019725,2]
[328699391,1717716693126,-615.0,0.00023163,2]
[328699392,1717716693135,-1830.0,0.00023163,2]
[328699393,1717716693144,-685.15158458,0.00023179,2]
[328699394,1717716693155,-565.134902,0.00023179,2]
[328699395,1717716693176,-522.75124161,0.00023179,2]
[328699396,1717716693185,-1.60006484,0.00023179,2]
[328699397,1717716693197,-1223.60737109,0.00023179,2]
[328699398,1717716693207,-263.20449605,0.00023471,2]
[328699399,1717716693217,-263.20449605,0.0002499,2]
[328699400,1717716693226,-613.0,0.00026163,2]
[328699401,1717716693235,-151.0,0.000277,7]
[328699402,1717716693244,-151.0,0.00029,7]
[328699403,1717716693254,-2100.0,0.00029752,2]
[328699404,1717716693264,-263.20449605,0.00029853,2]
[328699405,1717716693273,-1292.74,0.00029863,4]
[328699406,1717716693283,-500.0,0.00029863,4]
[328699407,1717716693293,-1292.74,0.00029863,4]
[328699408,1717716693302,-516.27501826,0.00029863,4]
[328699409,1717716693311,-151.0,0.00029863,7]
[328699410,1717716693321,-1292.74,0.00029863,4]
[328699411,1717716693331,-151.0,0.00029863,7]
[328699412,1717716693340,-1292.74,0.00029863,4]
[328699413,1717716693349,-199.08043205,0.00029863,4]
[328699414,1717716693359,-500.0,0.00029863,4]
[328699415,1717716693368,-1292.74,0.00029863,4]
[328699416,1717716693378,-151.0,0.00029863,7]
[328699417,1717716693388,-1292.74,0.00029863,4]
[328699418,1717716693398,-200.347242,0.00029863,7]
[328699419,1717716693408,-1276.5,0.00029998,4]
[328699420,1717716693417,-1276.5,0.00029999,4]
[328699421,1717716693427,-1276.5,0.00029999,4]
[328699422,1717716693436,-1276.5,0.00029999,4]
[328699423,1717716693445,-1276.5,0.00029999,4]
[328699424,1717716693454,-1276.5,0.00029999,4]
[328699425,1717716693463,-1276.5,0.00029999,4]
[328699426,1717716693473,-774393.32893461,0.0003,2]
[328699427,1717716693484,-4072.16416402,0.0003,2]
[328699428,1717716693496,-5766.98636082,0.0003,2]
[328699429,1717716693508,-621.64172439,0.0003,2]
[328699430,1717716693536,-1653.376,0.00026163,2]
[328699431,1717716693546,-1292.74,0.00029899,4]
[328699432,1717716693555,-84277.21096394,0.0003,2]
[328699433,1717716693597,-500.0,0.00029863,4]
[328699434,1717716693606,-500.0,0.00029863,4]
[328699435,1717716693615,-1292.74,0.00029998,4]
[328699436,1717716693625,-1276.51322096,0.00029999,4]
[328699437,1717716693634,-11892.27156177,0.0003,2]
[328699439,1717716823805,1262852.13404524,0.00014,2]
[328699440,1717716828443,6816.17462315,0.0003,40]
[328699441,1717716838039,1775.18319576,0.00033305,30]
[328699442,1717716841366,299.63440427,0.00033305,30]
[328699443,1717716842147,197237.11314879,0.00033305,30]
[328699447,1717717013546,288.20354845,0.000125,2]
[328699448,1717717046817,150.0,0.00033305,30]
[328699450,1717717357308,2000.0,0.00033269,30]
[328699451,1717717357675,1999.699999,0.00033269,30]
[328699452,1717717542430,690.0,0.00033269,30]
[328699511,1717717832079,-935.25814264,0.00016987,2]
[328699512,1717717832091,-564.74185736,0.00016987,2]
[328699513,1717717832101,-338.17759936,0.00016987,2]
[328699514,1717717832111,-304.02821629,0.00016988,2]
[328699515,1717717832120,-185.90809506,0.00016989,2]
[328699516,1717717832130,-155.0,0.00016989,2]
[328699517,1717717832139,-155.0,0.0001699,2]
[328699518,1717717832149,-1489.2883817,0.0001699,2]
[328699519,1717717832159,-155.0,0.00016991,2]
[328699520,1717717832168,-535.99330686,0.00016992,2]
[328699521,1717717832178,-506.43569543,0.00016992,2]
[328699522,1717717832188,-623.00611072,0.00016993,2]
[328699523,1717717832198,-209.36910457,0.00016993,2]
[328699524,1717717832207,-527.9583167,0.00016993,2]
[328699525,1717717832217,-150.0,0.00017014,2]
[328699526,1717717832227,-341.41351051,0.00017042,2]
[328699527,1717717832239,-2592.31585,0.00017042,2]
[328699528,1717717832251,-642.3977412,0.00017042,2]
[328699529,1717717832262,-456.76620795,0.00017042,2]
[328699530,1717717832274,-956.69375819,0.00017042,2]
[328699531,1717717832299,-7130.62691307,0.00017042,2]
[328699532,1717717832311,-676.60878486,0.00017042,2]
[328699533,1717717832321,-1000.0,0.00017044,2]
[328699534,1717717832331,-499.99,0.00017052,2]
[328699535,1717717832342,-300.0,0.00017159,2]
[328699536,1717717832362,-1260.44934067,0.00017259,2]
[328699537,1717717832380,-649.34168046,0.00018,2]
[328699538,1717717832395,-523.39,0.000185,2]
[328699539,1717717832409,-1667.99832955,0.00019,2]
[328699540,1717717832431,-729.00167045,0.00019,2]
[328699542,1717717832442,-411.5495904,0.00019,2]
[328699544,1717717832453,-1477.11,0.00019419,2]
[328699546,1717717832467,-200.0,0.00019462,2]
[328699548,1717717832479,-250.0,0.0001954,2]
[328699551,1717717832491,-250.0,0.00019625,2]
[328699553,1717717832505,-1000.0,0.00019674,2]
[328699555,1717717832517,-196.85,0.00019835,2]
[328699557,1717717832530,-1000.0,0.00019956,2]
[328699559,1717717832541,-155.0,0.0002,2]
[328699562,1717717832553,-1010.86316582,0.0002,2]
[328699564,1717717832567,-155.0,0.00020081,2]
[328699567,1717717832580,-155.0,0.00020082,2]
[328699569,1717717832594,-187.42794197,0.00020082,2]
[328699571,1717717832606,-4270.23557336,0.00020083,2]
[328699574,1717717832620,-1629.4257306,0.00020083,2]
[328699576,1717717832635,-358.76470063,0.00020083,2]
[328699579,1717717832647,-205.9557949,0.00020099,2]
[328699583,1717717832677,-300.6296171,0.00020099,2]
[328699586,1717717832691,-997.8724334,0.00020099,2]
[328699588,1717717832706,-9545.00489096,0.00020099,2]
[328699591,1717717832725,-17461.60646805,0.00020099,2]
[328699592,1717717832739,-1460.92879559,0.00020099,2]
[328699593,1717717832749,-165.99,0.00020102,2]
[328699594,1717717832762,-5422.98120441,0.00020423,2]
[328699595,1717717832775,-18477.01879559,0.00020423,2]
[328699596,1717717832786,-500.0,0.00020461,2]
[328699597,1717717832799,-164.68,0.00020572,2]
[328699598,1717717832812,-523.39,0.00020763,2]
[328699599,1717717832823,-202.99,0.00020858,2]
[328699600,1717717832835,-167.0,0.00021666,2]
[328699601,1717717832849,-215.14,0.00021918,2]
[328699602,1717717832862,-250.0,0.00021918,2]
[328699603,1717717832874,-790.03320351,0.00022133,2]
[328699604,1717717832887,-1000.0,0.00022134,2]
[328699605,1717717832898,-196.85,0.00022575,2]
[328699606,1717717832908,-155.0,0.00022974,2]
[328699607,1717717832918,-1169.02550228,0.00022981,2]
[328699608,1717717832928,-335.95373591,0.00022981,2]
[328699609,1717717832939,-172.0,0.00023,2]
[328699610,1717717832951,-523.39,0.00023027,2]
[328699611,1717717832963,-1031.71806703,0.00023079,2]
[328699612,1717717832975,-544.55033019,0.0002308,2]
[328699613,1717717832990,-544.55033019,0.0002308,2]
[328699614,1717717833000,-544.55033019,0.0002308,2]
[328699615,1717717833011,-544.55033019,0.0002308,2]
[328699616,1717717833021,-544.55033019,0.0002308,2]
[328699617,1717717833033,-544.55033019,0.0002308,2]
[328699618,1717717833044,-544.55033019,0.0002308,2]
[328699619,1717717833058,-544.55033019,0.0002308,2]
[328699620,1717717833070,-544.55033019,0.0002308,2]
[328699621,1717717833082,-544.55033019,0.0002308,2]
[328699622,1717717833092,-544.55033019,0.0002308,2]
[328699623,1717717833102,-544.55033019,0.0002308,2]
[328699624,1717717833113,-544.55033019,0.0002308,2]
[328699625,1717717833123,-544.55033019,0.0002308,2]
[328699627,1717717833138,-544.55033019,0.0002308,2]
[328699628,1717717833150,-544.55033019,0.0002308,2]
[328699629,1717717833161,-544.55033019,0.0002308,2]
[328699630,1717717833173,-544.55033019,0.0002308,2]
[328699631,1717717833185,-544.55033019,0.0002308,2]
[328699632,1717717833198,-544.55033019,0.0002308,2]
[328699633,1717717833209,-544.55033019,0.0002308,2]
[328699634,1717717833221,-544.55033019,0.0002308,2]
[328699635,1717717833233,-544.55033019,0.0002308,2]
[328699636,1717717833244,-544.55033019,0.0002308,2]
[328699637,1717717833258,-544.55033019,0.0002308,2]
[328699638,1717717833270,-544.55033019,0.0002308,2]
[328699639,1717717833282,-544.55033019,0.0002308,2]
[328699640,1717717833293,-544.55033019,0.0002308,2]
[328699641,1717717833304,-544.55033019,0.0002308,2]
[328699642,1717717833316,-544.55033019,0.0002308,2]
[328699643,1717717833327,-544.55033019,0.0002308,2]
[328699644,1717717833338,-544.55033019,0.0002308,2]
[328699645,1717717833349,-544.55033019,0.0002308,2]
[328699646,1717717833360,-544.55033019,0.0002308,2]
[328699647,1717717833373,-544.55033019,0.0002308,2]
[328699648,1717717833383,-544.55033019,0.0002308,2]
[328699649,1717717833394,-544.55033019,0.0002308,2]
[328699650,1717717833404,-544.55033019,0.0002308,2]
[328699651,1717717833415,-544.55033019,0.0002308,2]
[328699652,1717717833425,-544.55033019,0.0002308,2]
[328699653,1717717833436,-544.55033019,0.0002308,2]
[328699654,1717717833447,-544.55033019,0.0002308,2]
[328699655,1717717833458,-544.55033019,0.0002308,2]
[328699656,1717717833469,-544.55033019,0.0002308,2]
[328699657,1717717833480,-544.55033019,0.0002308,2]
[328699658,1717717833491,-544.55033019,0.0002308,2]
[328699659,1717717833501,-544.55033019,0.0002308,2]
[328699660,1717717833512,-544.55033019,0.0002308,2]
[328699661,1717717833523,-544.55033019,0.0002308,2]
[328699662,1717717833534,-544.55033019,0.0002308,2]
[328699663,1717717833544,-544.55033019,0.0002308,2]
[328699664,1717717833555,-544.55033019,0.0002308,2]
[328699665,1717717833565,-544.55033019,0.0002308,2]
[328699666,1717717833576,-544.55033019,0.0002308,2]
[328699667,1717717833587,-544.55033019,0.0002308,2]
[328699668,1717717833597,-544.55033019,0.0002308,2]
[328699669,1717717833608,-544.55033019,0.0002308,2]
[328699670,1717717833618,-544.55033019,0.0002308,2]
[328699671,1717717833629,-544.55033019,0.0002308,2]
[328699672,1717717833639,-537.52387432,0.0002308,2]
[328699673,1717717833651,-537.52387432,0.0002308,2]
[328699674,1717717833662,-537.52387432,0.0002308,2]
[328699675,1717717833674,-537.52387432,0.0002308,2]
[328699676,1717717833684,-537.52387432,0.0002308,2]
[328699677,1717717833695,-537.52387432,0.0002308,2]
[328699678,1717717833707,-537.52387432,0.0002308,2]
[328699679,1717717833719,-537.52387432,0.0002308,2]
[328699680,1717717833730,-537.52387432,0.0002308,2]
[328699681,1717717833742,-537.52387432,0.0002308,2]
[328699682,1717717833753,-537.52387432,0.0002308,2]
[328699683,1717717833763,-537.52387432,0.0002308,2]
[328699684,1717717833775,-537.52387432,0.0002308,2]
[328699685,1717717833785,-537.52387432,0.0002308,2]
[328699686,1717717833796,-537.52387432,0.0002308,2]
[328699687,1717717833806,-537.52387432,0.0002308,2]
[328699688,1717717833817,-537.52387432,0.0002308,2]
[328699689,1717717833828,-537.52387432,0.0002308,2]
[328699690,1717717833838,-537.52387432,0.0002308,2]
[328699691,1717717833849,-537.52387432,0.0002308,2]
[328699692,1717717833859,-537.52387432,0.0002308,2]
[328699693,1717717833869,-537.52387432,0.0002308,2]
[328699694,1717717833879,-537.52387432,0.0002308,2]
[328699695,1717717833890,-537.52387432,0.0002308,2]
[328699696,1717717833900,-537.52387432,0.0002308,2]
[328699697,1717717833911,-537.52387432,0.0002308,2]
[328699698,1717717833921,-537.52387432,0.0002308,2]
[328699699,1717717833932,-537.52387432,0.0002308,2]
[328699700,1717717833943,-537.52387432,0.0002308,2]
[328699701,1717717833954,-537.52387432,0.0002308,2]
[328699702,1717717833964,-537.52387432,0.0002308,2]
[328699703,1717717833976,-500.0,0.00023081,2]
[328699704,1717717833988,-39296.9015,0.00023081,2]
[328699705,1717717833998,-206240.86481629,0.00023081,2]
[328699706,1717717834013,-397.56791311,0.00023081,2]
[328699707,1717717838131,-160.38,0.0001921,2]
[328699708,1717717838141,-499.99265019,0.00023081,2]
[328699709,1717717838188,-8315.48155591,0.00023081,2]
[328699710,1717717838302,-29546.0930645,0.00023081,2]
[328699711,1717717838311,-34274.96165954,0.00023081,2]
[328699753,1717717841094,-406.7734298,0.00023081,2]
[328699754,1717717841153,-310.72,0.00023081,2]
[328699755,1717717841213,-999.99174,0.00023081,2]